Workbook

Sheet TOTALS
A1: Grand Totals - All Properties
B4: Month | C4: Year
A5: Rents
A6: Commercial Store Front | B6: =SUM('6730'!B11+'7100'!B11+'411'!B11+'7103'!B11+'4034'!B11) -> 31410.68 | C6: =SUM(B6*12) -> 376928.16
A7: Apartments | B7: 0 | C7: 0
A8: Owner Occupied Store | B8: =SUM('[1]ST 1'!B21+'[1]St 2'!B21+'[1]St 3'!B21+'[1]St 4'!B21+'[1]St 6'!B21+'[1]St 7'!B21+'[1]St 8'!B21+'[1]St 10'!B21+'[1]St 15'!B21+'[1]St 18'!B21+'[1]St 19'!B21+'[1]St 21'!B21+'[1]St 16'!B21) -> 0 | C8: =SUM(B8*12) -> 0
A10: Total Rents | B10: =SUM(B6:B9) -> 31410.68 | C10: =SUM(C6:C9) -> 376928.16
A13: Expenses
A14: RE Tax | C14: =SUM('6730'!C27+'7100'!C27+'411'!C27+'7103'!C27+'4034'!C27) -> 60388.4
A15: Insurance | C15: =SUM('6730'!C28+'7100'!C28+'411'!C28+'7103'!C28+'4034'!C28) -> 19755.26
A21: Total Expenses | C21: =SUM(C14:C20) -> 80143.66
A23: Net Income before Reim | C23: =SUM(C10-C21) -> 296784.5
A25: Tenant Paid Expense | C25: =SUM('6730'!C27+'7100'!C34+'411'!C34+'7103'!C34+'4034'!C34) -> 76272.58
A27: Net Income Actual | C27: =SUM(C23:C26) -> 373057.08

Sheet 6730
A1: 6730 New Falls Rd
A2: Levittown PA 19055
A3: Gross Building Are - 1,790 sq ft Land - 23,070 sq ft
B4: Month | C4: Year | D4: Sq Ft / Notes
A5: Rents
A6: Commercial Store Front
A7: Tobacco Shop NNN | B7: =SUM(3477+650) -> 4127 | C7: =SUM(B7*12) -> 49524 | D7: 1,790 sq ft
A11: Total Commercial | B11: =SUM(B7:B10) -> 4127 | C11: =SUM(C7:C10) -> 49524
A13: Apartment(s)
A14: Apartment
A19: Total Apartments | B19: =SUM(B14:B18) -> 0 | C19: =SUM(C14:C18) -> 0
A21: Owner Occupied Store | C21: =SUM(B21*12) -> 0
A23: Total Rents | C23: =SUM(C11+C19+C21) -> 49524
A26: Expenses
A27: RE Tax | C27: =SUM(1477.97+6303.84) -> 7781.81 | D27: 100% paid by Commercial Tenant
A28: Insurance | C28: 3871.08
A34: Total Expenses | C34: =SUM(C27:C33) -> 11652.89
A36: Net Income before Reim | C36: =SUM(C23-C34) -> 37871.11
A38: Tenant Paid Expense | C38: 7800
A40: Net Income Actual | C40: =SUM(C36:C39) -> 45671.11

Sheet 7100
A1: 7100 New Falls Rd
A2: Levittown, PA 19055
A3: Gross Building Area - 1,853 sq ft Land - 32,500 sq ft
B4: Month | C4: Year | D4: Sq Ft / Notes
A5: Rents
A6: Commercial Store Front
A7: Metro PCS NNN | B7: =SUM(2290+810) -> 3100 | C7: =SUM(B7*12) -> 37200 | D7: 926.50 sq ft
A8: HEGEMONY, INC | B8: =SUM(2500+944.14) -> 3444.14 | C8: =SUM(B8*12) -> 41329.68 | D8: 926.50 sq ft
A11: Total Commercial | B11: =SUM(B7:B10) -> 6544.14 | C11: =SUM(C7:C10) -> 78529.68
A13: Apartment(s)
A14: Apartment
A19: Total Apartments | B19: =SUM(B14:B18) -> 0 | C19: =SUM(C14:C18) -> 0
A21: Owner Occupied Store | B21: 0 | C21: =SUM(B21*12) -> 0
A23: Total Rents | C23: =SUM(C11+C19+C21) -> 78529.68
A26: Expenses | D26: 810.44 X 12
A27: RE Tax | C27: =SUM(3617.61+15832.95) -> 19450.56 | D27: 100% paid by Commercial Tenant
A28: Insurance | C28: 3871 | D28: 50% paid by Commercial Tenant
D31: 810.44
D32: 133.68
D33: 945
A34: Total Expenses | C34: =SUM(C27:C33) -> 23321.56 | D34: =SUM(23321.56/12/2) -> 971.7316667
A36: Net Income before Reim | C36: =SUM(C23-C34) -> 55208.12
A38: Tenant Paid Expense | C38: 21055.19
A40: Net Income Actual | C40: =SUM(C36:C39) -> 76263.31

Sheet 411
A1: 411 W Trenton Ave
A2: Morrisville, PA 19067
A3: Gross Building Area - 1,738 sq ftLand - 12,000 sq ft
B4: Month | C4: Year | D4: Sq Ft / Notes
A5: Rents
A6: Commercial Store Front
A7: Smok City | B7: =SUM(3090+817) -> 3907 | C7: =SUM(B7*12) -> 46884 | D7: 1,238 sq ft
A11: Total Commercial | B11: =SUM(B7:B10) -> 3907 | C11: =SUM(C7:C10) -> 46884
A13: Apartment(s)
A14: Apartment
A19: Total Apartments | B19: =SUM(B14:B18) -> 0 | C19: =SUM(C14:C18) -> 0
A21: Owner Occupied Store | B21: 0 | C21: =SUM(B21*12) -> 0
A23: Total Rents | C23: =SUM(C11+C19+C21) -> 46884
F25: 1075.76
A26: Expenses | F26: 5892.37
A27: RE Tax | C27: =SUM(1075.76+5892.37) -> 6968.13 | D27: 100% paid by Commercial Tenant
A28: Insurance | C28: 3455.97 | D28: 100% paid by Commercial Tenant
A34: Total Expenses | C34: =SUM(C27:C33) -> 10424.1 | D34: =SUM(10424.1/12) -> 868.675
A36: Net Income before Reim | C36: =SUM(C23-C34) -> 36459.9
A38: Tenant Paid Expense | C38: 9801.47 | D38: 816.78 X 12
A40: Net Income Actual | C40: =SUM(C36:C39) -> 46261.37

Sheet 7103
A1: 7103 New Falls Rd
A2: Levittown, PA 19055
A3: Gross Building Area - 1,250 Land -
B4: Month | C4: Year | D4: Sq Ft / Notes
A5: Rents
A6: Commercial Store Front
A7: Boost Mobile | B7: 2060 | C7: =SUM(B7*12) -> 24720 | D7: 400 sq ft
A8: Jeweler | B8: 500 | C8: =SUM(B8*12) -> 6000 | D8: 100 sq ft
A9: HEGEMONY, INC | B9: =SUM(5000+1037.61) -> 6037.61 | C9: =SUM(B9*12) -> 72451.32 | D9: 1050 sq ft
A11: Total Commercial | B11: =SUM(B6:B9) -> 8597.61 | C11: =SUM(C6:C9) -> 103171.32
A13: Apartment(s)
A14: Apartment
A19: Total Apartments | B19: =SUM(B14:B18) -> 0 | C19: =SUM(C14:C18) -> 0
A21: Owner Occupied Store | B21: 0 | C21: =SUM(B21*12) -> 0
A23: Total Rents | C23: =SUM(C11+C19+C21) -> 103171.32
A26: Expenses
A27: RE Tax | C27: 9535 | D27: 100% paid by Commercial Tenant | G27: 5710.57
A28: Insurance | C28: 3473.06 | D28: 100% paid by Commercial Tenant
A34: Total Expenses | C34: =SUM(C27:C33) -> 13008.06 | D34: =SUM(C34/12) -> 1084.005
A36: Net Income before Reim | C36: =SUM(C23-C34) -> 90163.26
A38: Tenant Paid Expense | C38: 12451.39
A40: Net Income Actual | C40: =SUM(C36:C39) -> 102614.65

Sheet 4034
A1: 4034 Veterans Highway
A2: Levittown, PA 19056
A3: Gross Building Area - 8,392 sq ft Land - 17,032 sq ft
B4: Month | C4: Year | D4: Sq Ft / Notes
A5: Rents
A6: Commercial Store Front
A7: Lesun LLC | B7: =SUM(2000+572.52) -> 2572.52 | C7: =SUM(B7*12) -> 30870.24 | D7: 1,446 sq ft
A8: HEGEMONY, INC | B8: =SUM(4500+1162.41) -> 5662.41 | C8: =SUM(B8*12) -> 67948.92 | D8: 6,946 sq ft
A11: Total Commercial | B11: =SUM(B7:B10) -> 8234.93 | C11: =SUM(C7:C10) -> 98819.16
A13: Apartment(s)
A14: Apartment
A19: Total Apartments | B19: =SUM(B14:B18) -> 0 | C19: =SUM(C14:C18) -> 0 | G19: 2000
G20: 527
A21: Owner Occupied Store | B21: 0 | C21: =SUM(B21*12) -> 0
A23: Total Rents | C23: =SUM(C11+C19+C21) -> 98819.16
A26: Expenses
A27: RE Tax | C27: =SUM(3104.61+13548.29) -> 16652.9 | D27: 100% paid by Commercial Tenant
A28: Insurance | C28: 5084.15 | D28: 100% paid by Commercial Tenant
A34: Total Expenses | C34: =SUM(C27:C33) -> 21737.05 | D34: =SUM(21737.05/12) -> 1811.420833 | E34: =SUM(D34*67%) -> 1213.651958
D35: =SUM(21737.05/12) -> 1811.420833 | E35: =SUM(D35*33%) -> 597.768875
A36: Net Income before Reim | C36: =SUM(C23-C34) -> 77082.11
D37: 67% 13949.1 | E37: 1162.42
A38: Tenant Paid Expense | C38: 20819.45 | D38: =SUM(21710.32/12*0.67) -> 1212.159533 | E38: 572.52
D39: =SUM(21710.32/12*0.33) -> 597.0338
A40: Net Income Actual | C40: =SUM(C36:C39) -> 97901.56
